{"text_format":"3","workbook":"xlsx","n_sheets":3,"sheets":["Hagyatéki leltár","Hagyatéki vagyontárgyak","Hagyatéki kötelezettségek"],"not_rendered":{"defined_names":1},"read":"whole","date_system":"1900"}

{"sheet":"Hagyatéki leltár","index":0,"n_rows":45,"n_cols":35,"rows_kept":45,"merged":[[0,1,0,30],[0,31,0,39],[1,1,5,39],[6,1,6,6],[6,7,6,39],[7,1,7,6],[7,7,7,39],[9,1,9,6],[9,7,9,39],[10,1,10,6],[10,7,10,39],[11,1,11,6],[11,7,11,20],[11,21,11,26],[11,27,11,30],[11,31,11,33],[11,34,11,39],[12,1,12,6],[12,7,12,20],[12,21,12,26],[13,1,13,6],[13,7,13,20],[13,21,13,26],[14,1,14,6],[14,7,14,20],[14,21,14,26],[15,1,15,6],[17,1,17,39],[18,1,18,6],[18,7,18,12],[18,13,18,15],[18,16,18,18],[18,19,18,26],[18,27,18,31],[18,32,18,39],[19,1,19,6],[19,7,19,12],[19,13,19,15],[19,16,19,18],[19,19,19,26],[19,27,19,31],[19,32,19,39],[20,1,20,6],[20,7,20,12],[20,13,20,15],[20,16,20,18],[20,19,20,26],[20,27,20,31],[20,32,20,39],[21,1,21,6],[21,7,21,12],[21,13,21,15],[21,16,21,18],[21,19,21,26],[21,27,21,31],[21,32,21,39],[22,1,22,6],[22,7,22,12],[22,13,22,15],[22,16,22,18],[22,19,22,26],[22,27,22,31],[22,32,22,39],[23,1,23,6],[23,7,23,12],[23,13,23,15],[23,16,23,18],[23,19,23,26],[23,27,23,31],[23,32,23,39],[25,1,25,39],[26,1,26,6],[26,7,26,12],[26,13,26,18],[26,19,26,26],[26,27,26,31],[26,32,26,39],[27,1,27,6],[27,7,27,12],[27,13,27,18],[27,19,27,26],[27,27,27,31],[27,32,27,39],[28,1,28,6],[28,7,28,12],[28,13,28,18],[28,19,28,26],[28,27,28,31],[28,32,28,39],[29,1,29,6],[29,7,29,12],[29,13,29,18],[29,19,29,26],[29,27,29,31],[29,32,29,39],[30,1,30,6],[30,7,30,12],[30,13,30,18],[30,19,30,26],[30,27,30,31],[30,32,30,39],[31,1,31,6],[31,7,31,12],[31,13,31,18],[31,19,31,26],[31,27,31,31],[31,32,31,39],[33,1,33,12],[33,14,33,39],[34,1,34,12],[34,14,34,21],[34,22,34,25],[34,26,34,33],[34,34,34,39],[35,2,35,12],[35,14,35,21],[35,22,35,25],[35,26,35,33],[35,34,35,39],[36,2,36,12],[36,14,36,21],[36,22,36,25],[36,26,36,33],[36,34,36,39],[37,2,37,12],[37,14,37,21],[37,22,37,25],[37,26,37,33],[37,34,37,39],[38,2,38,12],[38,14,38,21],[38,22,38,25],[38,26,38,33],[38,34,38,39],[39,2,39,12],[39,14,39,21],[39,22,39,25],[39,26,39,33],[39,34,39,39],[40,2,40,12],[40,14,40,21],[40,22,40,25],[40,26,40,33],[40,34,40,39],[41,2,41,12],[41,14,41,21],[41,22,41,25],[41,26,41,33],[41,34,41,39],[42,2,42,12],[42,14,42,21],[42,22,42,25],[42,26,42,33],[42,34,42,38],[43,2,43,12],[43,14,43,21],[43,22,43,25],[43,26,43,33],[43,34,43,39],[44,2,44,12],[44,14,44,21],[44,22,44,25],[44,26,44,33],[44,34,44,39]]}
[]
[null,"Hagyatéki leltár"]
[]
[]
[]
[]
[null,"Végrehajtó(k) neve",{"$nulls":5},"Balogh András"]
[null,"Kapcsolattartási adatok",{"$nulls":5},"1061 Budapest, Aradi utca 15."]
[]
[null,"Az elhunyt neve",{"$nulls":5},"Katona Kevin"]
[null,"Utca, házszám",{"$nulls":5},"Fő utca 67."]
[null,"Település",{"$nulls":5},"Budapest",{"$nulls":13},"Megye",{"$nulls":5},"HU",{"$nulls":3},"Irányítószám",null,null,98052]
[null,"TAJ-szám",{"$nulls":5},"AAA-GG-SSSS",{"$nulls":13},"Foglalkozás",{"$nulls":5},"Fogorvos"]
[null,"Születési dátum",{"$nulls":5},"1965-12-08",{"$nulls":13},"Születési hely",{"$nulls":5},"HU"]
[null,"Halál dátuma",{"$nulls":5},{"$f":"TODAY()-3","v":"2022-05-13"},{"$nulls":13},"Halálozás helye",{"$nulls":5},"HU"]
[null,"További információ"]
[]
[null,"  Házastárs, gyermekek és egyéb hozzátartozók"]
[null,"Név",{"$nulls":5},"Kapcsolat",{"$nulls":5},"Kedvezményezett",null,null,"Életkor",null,null,"Cím",{"$nulls":7},"Telefonszám",{"$nulls":4},"E-mail-cím"]
[null,"Vincze Noémi",{"$nulls":5},"Személyes képviselő",{"$nulls":5},"Nem",null,null,30]
[null,"Sinku Regina",{"$nulls":5},"Házastárs",{"$nulls":5},"Igen",null,null,35]
[null,"Fodor Mihály",{"$nulls":5},"Gyermek",{"$nulls":5},"Igen",null,null,12]
[]
[]
[]
[null,"Szakmai tanácsadók"]
[null,"Tanácsadó típusa",{"$nulls":5},"Kapcsolattartó",{"$nulls":5},"Cég",{"$nulls":5},"Cím",{"$nulls":7},"Telefonszám",{"$nulls":4},"E-mail-cím"]
[null,"Könyvelő"]
[null,"Ügyvéd/Közjegyző"]
[null,"Egyéb"]
[]
[]
[]
[null,"  Hagyatéki ellenőrzőlista",{"$nulls":12},"  Hagyatéki leltárak"]
[null,"    Ellenőrzőlista elemei",{"$nulls":12},"Hagyatéki vagyontárgyak",{"$nulls":7},"Érték (Ft)",{"$nulls":3},"Hagyatéki kötelezettségek",{"$nulls":7},"Érték (Ft)"]
[null,"✔","Végrendelet, nyilatkozat vagy bármely más dokumentum",{"$nulls":11},{"$f":"'Hagyatéki vagyontárgyak'!B12","v":"Bankszámlák"},{"$nulls":7},{"$f":"'Hagyatéki vagyontárgyak'!G20","v":{"v":0,"d":"0.00 Ft"}},{"$nulls":3},{"$f":"'Hagyatéki kötelezettségek'!B11","v":"Jelzáloghitelek"},{"$nulls":7},{"$f":"'Hagyatéki kötelezettségek'!G18","v":{"v":0,"d":"0.00 Ft"}}]
[null,"✔","Széfbérleti szerződés és kulcsok",{"$nulls":11},{"$f":"'Hagyatéki vagyontárgyak'!B22","v":"Személyes befektetések"},{"$nulls":7},{"$f":"'Hagyatéki vagyontárgyak'!G30","v":{"v":0,"d":"0.00 Ft"}},{"$nulls":3},{"$f":"'Hagyatéki kötelezettségek'!B21","v":"Személyi kölcsönök és hitelkeretek"},{"$nulls":7},{"$f":"'Hagyatéki kötelezettségek'!G28","v":{"v":0,"d":"0.00 Ft"}}]
[null,"✖","Jelszavak számítógépekhez és online fiókokhoz",{"$nulls":11},{"$f":"'Hagyatéki vagyontárgyak'!B32","v":"Üzleti érdekeltségek"},{"$nulls":7},{"$f":"'Hagyatéki vagyontárgyak'!G40","v":{"v":0,"d":"0.00 Ft"}},{"$nulls":3},{"$f":"'Hagyatéki kötelezettségek'!B31","v":"Üzleti érdekeltségek"},{"$nulls":7},{"$f":"'Hagyatéki kötelezettségek'!G38","v":{"v":0,"d":"0.00 Ft"}}]
[null,"✔","Élő vagyonkezelési szerződések",{"$nulls":11},{"$f":"'Hagyatéki vagyontárgyak'!B42","v":"Ingatlan"},{"$nulls":7},{"$f":"'Hagyatéki vagyontárgyak'!G50","v":{"v":0,"d":"0.00 Ft"}},{"$nulls":3},{"$f":"'Hagyatéki kötelezettségek'!B41","v":"Hitelkártyák"},{"$nulls":7},{"$f":"'Hagyatéki kötelezettségek'!G48","v":{"v":0,"d":"0.00 Ft"}}]
[null,"✔","Életbiztosítás, egészségbiztosítás, balesetbiztosítás és biztosítási kötvények",{"$nulls":11},{"$f":"'Hagyatéki vagyontárgyak'!B52","v":"Nyugdíjpénztárak"},{"$nulls":7},{"$f":"'Hagyatéki vagyontárgyak'!G60","v":{"v":0,"d":"0.00 Ft"}},{"$nulls":3},{"$f":"'Hagyatéki kötelezettségek'!B51","v":"Egyéb kötelezettségek"},{"$nulls":7},{"$f":"'Hagyatéki kötelezettségek'!G58","v":{"v":0,"d":"0.00 Ft"}}]
[null,"✔","Pénzügyi kimutatások",{"$nulls":11},{"$f":"'Hagyatéki vagyontárgyak'!B62","v":"Biztosítás"},{"$nulls":7},{"$f":"'Hagyatéki vagyontárgyak'!G70","v":{"v":0,"d":"0.00 Ft"}}]
[null,"✔","Az elmúlt három év jövedelemadó bevallásai",{"$nulls":11},{"$f":"'Hagyatéki vagyontárgyak'!B72","v":"Személyi kölcsönök és jelzáloghitelek"},{"$nulls":7},{"$f":"'Hagyatéki vagyontárgyak'!G80","v":{"v":0,"d":"0.00 Ft"}}]
[null,"✔","Születési és halotti anyakönyvi kivonat",{"$nulls":11},{"$f":"'Hagyatéki vagyontárgyak'!B82","v":"Érdekeltség egyéb ingatlanokban és betéti társaságokban"},{"$nulls":7},{"$f":"'Hagyatéki vagyontárgyak'!G90","v":{"v":0,"d":"0.00 Ft"}}]
[null,"✖","Adásvételi szerződések, jelzáloghitelek és bérleti szerződések",{"$nulls":11},{"$f":"'Hagyatéki vagyontárgyak'!B92","v":"Személyes tárgyak és egyéb ingóságok"},{"$nulls":7},{"$f":"'Hagyatéki vagyontárgyak'!G100","v":{"v":0,"d":"0.00 Ft"}}]
[null,"☐","Kifizetetlen számlák és felszólítások",{"$nulls":11},"Vagyontárgyak összesen",{"$nulls":7},{"$f":"'Hagyatéki vagyontárgyak'!G10","v":{"v":0,"d":"0.00 Ft"}},{"$nulls":3},"Kötelezettségek összesen",{"$nulls":7},{"$f":"SUM(AI36:AN44)","v":{"v":0,"d":"0.00 Ft"}}]

{"sheet":"Hagyatéki vagyontárgyak","index":1,"n_rows":100,"n_cols":8,"rows_kept":100,"merged":[[0,1,0,7],[1,1,5,7],[6,1,7,7],[11,1,11,7],[12,1,12,7],[21,1,21,7],[22,1,22,7],[31,1,31,7],[32,1,32,7],[41,1,41,7],[42,1,42,7],[51,1,51,7],[52,1,52,7],[61,1,61,7],[62,1,62,7],[71,1,71,7],[72,1,72,7],[81,1,81,7],[82,1,82,7],[91,1,91,7],[92,1,92,7]]}
[]
[null,"Hagyatéki vagyontárgyak"]
[]
[]
[]
[]
[null,"Használja ezt a munkalapot a hagyatéki vagyontárgyak leltárának elkészítéséhez. Az egyes hagyatéki vagyontárgyak piaci értékét a halál időpontjában kell meghatározni. Tekintse át az összes nyilvántartást, beleértve a pénzügyi kimutatásokat, biztosítási kötvényeket és adóbevallásokat a piaci értékek megállapítása érdekében. A személyes tárgyak (pl. műalkotások, gyűjtemények, régiségek stb.) értékbecslésére is szükség lehet. Feltétlenül vegye fel a leltárba a külföldi vagyontárgyakat is, például az ingatlanokat, értékpapírokat vagy tengerentúli üzleti érdekeltségeket. A külföldi vagyontárgyak pontos piaci értékének megállapításához érdemes szakember segítségét igénybe vennie."]
[]
[]
[null,"Teljes vagyon",{"$nulls":4},{"$f":"tblBankAccounts[[#Totals],[Egyenleg ]]+tblPersonalInvestments[[#Totals],[Piaci érték]]+tblBusinessInterests[[#Totals],[Érték ]]+tblRealEstate[[#Totals],[Piaci ár]]+tblPensionPlans[[#Totals],[Érték ]]+tblInsurance[[#Totals],[Készpénzérték ]]+tblMortgages[[#Totals],[Tartozás ]]+tblTrusts[[#Totals],[Osztalékösszeg]]+tblOtherAssets[[#Totals],[Érték ]]","v":{"v":0,"d":"0.00 Ft"}}]
[]
[null,"Bankszámlák"]
[null,"Sorolja fel az összes bankszámlát, beleértve a készpénzt, utazási csekkeket, kifizetési megbízásokat, valamint a kereskedelmi bankoknál, takarékpénztáraknál, hitelszövetkezeteknél stb. vezetett számlákat. Adja meg a számlán szereplő összes nevet és a tényleges készpénzértéket, amely a halál időpontjában a pontos pénzösszegre utal."]
[null,"Pénzügyi intézmény ","Cím","Telefonszám","Számlaszám","Számla típusa","Egyenleg ","Megjegyzések"]
[]
[]
[]
[]
[]
[null,"Összeg",{"$nulls":4},{"$f":"SUBTOTAL(109,tblBankAccounts[[Egyenleg ]])","v":{"v":0,"d":"0.00 Ft"}}]
[]
[null,"Személyes befektetések"]
[null,"Készpénzszámlák, letéti számlák, adómentes megtakarítási számlák, Regisztrált Nyugdíj-megtakarítási Tervek (RRSP-k),Regisztrált nyugdíjalapok (RRIF-k), Lekötött nyugdíjalapok, Lekötött Nyugdíj-megtakarítási Tervek, Életjáradéki alapok, Előírt Nyugdíjjövedelem Alapok, Regisztrált oktatási megtakarítási tervek, életjáradékok, stb."]
[null,"Cég","Cím","Telefonszám","Számlaszám","Kedvezményezett","Piaci érték","Megjegyzések"]
[]
[]
[]
[]
[]
[null,"Összeg",{"$nulls":4},{"$f":"SUBTOTAL(109,tblPersonalInvestments[Piaci érték])","v":{"v":0,"d":"0.00 Ft"}}]
[]
[null,"Üzleti érdekeltségek"]
[null,"Sorolja fel az összes üzleti érdekeltséget, beleértve az egyéni vállalkozásokat, szakmai tevékenységeket, társaságokat, partnerségeket, korlátolt felelősségű társaságokat és társulásokat, vegyesvállalatokat és más, nem jegyzett gazdasági társaságokat. "]
[null,"Vállalat neve","Cím","Telefonszám","Kapcsolattartó","Típus","Érték ","Megjegyzések"]
[]
[]
[]
[]
[]
[null,"Összeg",{"$nulls":4},{"$f":"SUBTOTAL(109,tblBusinessInterests[[Érték ]])","v":{"v":0,"d":"0.00 Ft"}}]
[]
[null,"Ingatlan"]
[null,"Sorolja fel azokat az ingatlanokat, amelyekben az elhunyt és/vagy az elhunyt túlélő házastársa/élettársa tulajdonos, társtulajdonos vagy bármilyen módon érdekelt, beleértve a üdülőövezetekben vásárolt ingatlanokat és az üdülési jogokat. Szerezze be az okiratok másolatait. Adja meg az ingatlan pontos leírását a fizikai címével együtt. Adja meg az ingatlan valós piaci értékét az adószakértő legutóbbi értékbecslése alapján."]
[null,"Cím","Cím birtokosa","Telefonszám","Kapcsolattartó","Vételár","Piaci ár","Megjegyzések"]
[]
[]
[]
[]
[]
[null,"Összeg",{"$nulls":3},{"$f":"SUBTOTAL(109,tblRealEstate[Vételár])","v":{"v":0,"d":"0.00 Ft"}},{"$f":"SUBTOTAL(109,tblRealEstate[Piaci ár])","v":{"v":0,"d":"0.00 Ft"}}]
[]
[null,"Nyugdíjpénztárak"]
[null,"Sorolja fel a meghatározott juttatásokat, a készpénzes vásárlásokat vagy a meghatározott járulékokat, a DPSP-t vagy a csoportos RRSP-t, stb."]
[null,"Cég","Telefonszám","Csomag típusa","Kedvezményezett","E-mail-cím","Érték ","Megjegyzések"]
[]
[]
[]
[]
[]
[null,"Összeg",{"$nulls":4},{"$f":"SUBTOTAL(109,tblPensionPlans[[Érték ]])","v":{"v":0,"d":"0.00 Ft"}}]
[]
[null,"Biztosítás"]
[null,"Foglalja bele az élő vagyonkezelői szerződéseket, a megnevezett kedvezményezettekkel rendelkező életbiztosításokat és a halálesetkor átadott befektetési számlákat, mint nem hagyatéki vagyontárgyakat. Ha a bíróság tájékoztatást kér ezekről a vagyontárgyakról, a végrehajtó egyszerűen hivatkozhat a nem hagyatéki vagyontárgyak listájára, és megindokolhatja, hogy miért nem szerepelnek a hagyatéki leltárban."]
[null,"Kibocsátó","Kötvény száma","Telefonszám","Kedvezményezett","Névérték ","Készpénzérték ","Megjegyzések"]
[]
[]
[]
[]
[]
[null,"Összeg",{"$nulls":3},{"$f":"SUBTOTAL(109,tblInsurance[[Névérték ]])","v":{"v":0,"d":"0.00 Ft"}},{"$f":"SUBTOTAL(109,tblInsurance[[Készpénzérték ]])","v":{"v":0,"d":"0.00 Ft"}}]
[]
[null,"Személyi kölcsönök és jelzáloghitelek"]
[null,"Sorolja fel azokat a személyi kölcsönöket és jelzáloghiteleket, amelyeknél az elhunyt személy volt a hitelező."]
[null,"Kölcsönvevő neve","Cím","Telefonszám","Típus","Eredeti összeg","Tartozás ","Megjegyzések"]
[]
[]
[]
[]
[]
[null,"Összeg",{"$nulls":3},{"$f":"SUBTOTAL(109,tblMortgages[Eredeti összeg])","v":{"v":0,"d":"0.00 Ft"}},{"$f":"SUBTOTAL(109,tblMortgages[[Tartozás ]])","v":{"v":0,"d":"0.00 Ft"}}]
[]
[null,"Érdekeltség egyéb ingatlanokban és betéti társaságokban"]
[null,"Sorolja fel az elhunyt személy nevére bejegyzett, mások megbízásából kezelt vagyontárgyakat (pl. az elhunyt személy által vagyonkezelőként vagy meghatalmazás alapján birtokolt vagyontárgyak)."]
[null,"A birtok / vagyonkezelő neve","Végrehajtó/megbízott neve","Telefonszám","Cím","E-mail-cím","Osztalékösszeg","Megjegyzések"]
[]
[]
[]
[]
[]
[null,"Összeg",{"$nulls":4},{"$f":"SUBTOTAL(109,tblTrusts[Osztalékösszeg])","v":{"v":0,"d":"0.00 Ft"}}]
[]
[null,"Személyes tárgyak és egyéb ingóságok"]
[null,"Sorolja fel az összes személyes tárgyat, például: autók, ékszerek, műtárgyak, régiségek, bútorok. Foglalja bele azokat a tárgyakat is, amelyeket esetleg széfben vagy értékmegőrzőben tartottak."]
[null,"Tétel leírása","Hely","Telefonszám","Kapcsolattartó","Kedvezményezett","Érték ","Megjegyzések"]
[]
[]
[]
[]
[]
[null,"Összeg",{"$nulls":4},{"$f":"SUBTOTAL(109,tblOtherAssets[[Érték ]])","v":{"v":0,"d":"0.00 Ft"}}]

{"sheet":"Hagyatéki kötelezettségek","index":2,"n_rows":58,"n_cols":8,"rows_kept":58,"merged":[[0,1,0,7],[1,1,5,7],[6,1,6,7],[10,1,10,7],[20,1,20,7],[30,1,30,7],[40,1,40,7],[50,1,50,7]]}
[]
[null,"Hagyatéki kötelezettségek"]
[]
[]
[]
[]
[null,"Használja ezt a munkalapot a hagyatéki kötelezettségek részleteinek rögzítésére, mind belföldi, mind külföldi vonatkozásban. Minden egyes kötelezettségről a halál időpontjára vonatkozó értékbecslést kell készíteni."]
[]
[null,"Teljes vagyon",{"$nulls":4},{"$f":"SUM(G18,G28,G38,G48,G58)","v":{"v":0,"d":"0.00 Ft"}}]
[]
[null,"Jelzáloghitelek"]
[null,"Pénzügyi intézmény ","Cím","Telefonszám","Cím birtokosa","Számlaszám","Egyenleg ","Megjegyzések"]
[]
[]
[]
[]
[]
[null,"Összeg",{"$nulls":4},{"$f":"SUBTOTAL(109,tblBankAccounts2[[Egyenleg ]])","v":{"v":0,"d":"0.00 Ft"}}]
[]
[]
[null,"Személyi kölcsönök és hitelkeretek"]
[null,"Pénzügyi intézmény","Cím","Telefonszám"," Számlaszám","Típus","Egyenleg ","Megjegyzések"]
[]
[]
[]
[]
[]
[null,"Összeg",{"$nulls":4},{"$f":"SUBTOTAL(109,tblPersonalInvestments3[[Egyenleg ]])","v":{"v":0,"d":"0.00 Ft"}}]
[]
[]
[null,"Üzleti érdekeltségek"]
[null,"Vállalat neve","Cím"," Telefonszám"," Kapcsolattartó","Típus","Érték ","Megjegyzések"]
[]
[]
[]
[]
[]
[null,"Összeg",{"$nulls":4},{"$f":"SUBTOTAL(109,tblBusinessInterests4[[Érték ]])","v":{"v":0,"d":"0.00 Ft"}}]
[]
[]
[null,"Hitelkártyák"]
[null,"Hitelkártya-kibocsátó","Vállalat címe","Telefonszám","Kártyaszám","Lejárat dátuma ","Egyenleg ","Megjegyzések"]
[]
[]
[]
[]
[]
[null,"Összeg",{"$nulls":4},{"$f":"SUBTOTAL(109,tblRealEstate5[[Egyenleg ]])","v":{"v":0,"d":"0.00 Ft"}}]
[]
[]
[null,"Egyéb kötelezettségek"]
[null,"Tétel leírása","Hely","Telefonszám","Kapcsolattartó","Kedvezményezett","Érték ","Megjegyzések"]
[]
[]
[]
[]
[]
[null,"Összeg",{"$nulls":4},{"$f":"SUBTOTAL(109,tblPensionPlans6[[Érték ]])","v":{"v":0,"d":"0.00 Ft"}}]